Cogmind - Beta 9.1 @@@ ROGUE MODE // 2019.11.04 @ 21:42:00 Player: MrPainting Result: Self-destructed Performance ------------- Evolutions (1) 500 Regions Visited (2) 400 Robots Destroyed (13) 65 Value Destroyed (281) 281 Prototype IDs (0) 0 Alien Tech Used (0) 0 Bonus (0) 0 TOTAL SCORE: 1246 Bonus ------- None Cogmind --------- Core Integrity 296/400 Matter 2/300 Energy 100/100 System Corruption 0% Temperature Cool (0) Location -9/Materials Parts ------- Power (1) Propulsion (3) Improved Treads Utility (3) Small Storage Unit Visual Processing Unit Hardened Light Armor Plating Weapon (2) Improved Light Cannon Improved Light Cannon Inventory (6) Ion Engine Hover Unit Hover Unit Hover Unit Improved Light Cannon Improved Light Cannon Peak State ------------ Power Ion Engine Propulsion Improved Treads Utility Small Storage Unit Visual Processing Unit Hardened Light Armor Plating Weapon Improved Light Cannon Improved Light Cannon Inventory Hover Unit [Rating: 12] Favorites ----------- Power Ion Engine Engine Ion Engine Propulsion Aluminum Leg Treads Improved Treads Leg Aluminum Leg Utility Visual Processing Unit Device High-powered Tractor Beam Storage Small Storage Unit Processor Visual Processing Unit Protection Hardened Light Armor Plating Weapon Improved Light Cannon Ballistic Gun Assault Rifle Ballistic Cannon Improved Light Cannon Build | -11 -10 -9 ------- Run | Scr Mat Mat Slots Evolved 2 | . . 2 Power . | . . . Propulsion 1 | . . 1 Utility 1 | . . 1 Weapon . | . . . Parts Attached 16 | 3 7 6 Power 2 | . 1 1 Engine 2 | . 1 1 Core . | . . . Reactor . | . . . Propulsion 3 | 2 . 1 Treads 1 | . . 1 Leg 2 | 2 . . Wheel . | . . . Hover . | . . . Flight . | . . . Utility 4 | . 2 2 Device 1 | . 1 . Storage 1 | . . 1 Processor 1 | . 1 . Hackware . | . . . Protection 1 | . . 1 Artifact . | . . . Weapon 7 | 1 4 2 Energy Gun . | . . . Energy Cannon . | . . . Ballistic Gun 1 | 1 . . Ballistic Cannon 6 | . 4 2 Launcher . | . . . Special Weapon . | . . . Impact Weapon . | . . . Slashing Weapon . | . . . Piercing Weapon . | . . . Special Melee Weapon . | . . . Unidentified Prototypes . | . . . Parts Lost 7 | . 5 2 Power 1 | . . 1 Propulsion 2 | . 2 . Utility 1 | . 1 . Weapon 3 | . 2 1 Highest Loss Streak 5 | . 5 1 Average Slot Usage (%) 66 | . 69 60 Engine 11 | . 12 9 Treads 2 | . . 7 Leg 7 | . 11 . Device 2 | . 4 . Storage 2 | . . 7 Processor 12 | . 13 11 Protection 2 | . . 7 Ballistic Cannon 22 | . 24 19 Naked Turns . | . . . Heaviest Build 22 | 2 14 22 Greatest Support 23 | 20 20 23 Greatest Overweight (x) 4 | . 4 4 Average Overweight (x) 1 | . 1 1 Largest Inventory Capacity 6 | 4 4 6 Average Capacity 4 | 4 4 5 Most Carried 6 | 4 4 6 Average Carried 2 | 2 2 3 Final Capacity 6 | 4 4 6 Final Carried 6 | 4 2 6 Class Distribution -------------------- 100% | Mutant Dominant Class ---------------- Mutant | -10/Materials Mutant | -9/Materials Resources | -11 -10 -9 ----------- Run | Scr Mat Mat Matter Collected 351 | 230 109 12 Remotely 104 | . 104 . Salvage Created 165 | . 132 33 Parts 16 | . 6 10 Haulers Intercepted . | . . . Recyclers Shooed . | . . . Parts Field Recycled . | . . . Retrieved Matter . | . . . Parts Self-Destructed . | . . . Prevented . | . . . Kills | -11 -10 -9 ------- Run | Scr Mat Mat Combat Hostiles Destroyed 11 | . 7 4 Cannons 11 | . 7 4 Classes Destroyed 3 | . 3 . Watcher 2 | . 1 1 Swarmer 7 | . 3 4 Grunt 4 | . 4 . Best Kill Streak 5 | . 5 3 Combat Bots Only 5 | . 5 3 Max Kills in Single Turn 1 | . 1 1 Gunslinging . | . . . Exploded . | . . . Melee . | . . . Uniques/NPCs Destroyed . | . . . Combat | -11 -10 -9 -------- Run | Scr Mat Mat Damage Taken 1167 | . 614 553 Core 176 | . 72 104 Absorbed by Shields . | . . . Core Remaining (%) 85 | 100 71 . Volleys Fired 46 | . 32 14 Largest 2 | . 2 2 Hottest 78 | . 78 78 Shots Fired 81 | . 56 25 Gun . | . . . Cannon 81 | . 56 25 Launcher . | . . . Special . | . . . Kinetic 81 | . 56 25 Thermal . | . . . Explosive . | . . . Electromagnetic . | . . . Robot Hit Streak 10 | . 10 3 Robot Miss Streak 6 | . 6 3 Penetration Max . | . . . Secondary Targets . | . . . Shots Hit Robots 40 | . 30 10 Core Hits 14 | . 9 5 Critical Hits . | . . . Critical Kills . | . . . Critical Parts Destroyed . | . . . Melee Attacks . | . . . Impact . | . . . Slashing . | . . . Piercing . | . . . Sneak Attacks . | . . . Combat Hostiles . | . . . Follow-up Attacks . | . . . Damage Inflicted 770 | . 563 207 Guns . | . . . Cannons 770 | . 563 207 Explosions . | . . . Melee . | . . . Ramming . | . . . Kinetic 770 | . 563 207 Thermal . | . . . Explosive . | . . . Electromagnetic . | . . . Impact . | . . . Slashing . | . . . Piercing . | . . . Highest Corruption . | . . . Average Corruption . | . . . Corruption Purged . | . . . Overload Shots . | . . . Overflow Damage 23 | . 19 4 Projectiles 23 | . 19 4 Explosions . | . . . Melee . | . . . Knockbacks 12 | . 11 1 Impact . | . . . Kinetic 11 | . 10 1 Secondary 1 | . 1 . Self-Inflicted Damage . | . . . Shots . | . . . Rammed . | . . . Targets Rammed . | . . . Kicked . | . . . Crushed . | . . . Highest Temperature 401 | . 401 110 Average Temperature 130 | . 168 40 Received Heat Transfer 234 | . 168 66 Effects 3 | . 3 . Shutdowns 1 | . 1 . Damage (minor) 2 | . 2 . Siege Activations . | . . . Robots Corrupted . | . . . Combat Hostiles . | . . . Parts Fried . | . . . Impact Corruptions 1 | . 1 . Robots Melted . | . . . Combat Hostiles . | . . . Parts Melted . | . . . Heat Transferred . | . . . Parts Sabotaged . | . . . Parts Stolen . | . . . Parts Stripped . | . . . Power Chain Reactions . | . . . Missiles Intercepted . | . . . Alert | -11 -10 -9 ------- Run | Scr Mat Mat Peak Influence 192 | . 192 177 Average Influence 115 | . 118 141 Maximum Alert Level . | . . . Low Security (%) 100 | . . . Level 1 . | . . . Level 2 . | . . . Level 3 . | . . . Level 4 . | . . . Level 5 . | . . . High Security . | . . . Max Security . | . . . Squads Dispatched 1 | . . 1 Investigation 1 | . . 1 Extermination . | . . . Reinforcement . | . . . Assault . | . . . Garrison . | . . . Intercept . | . . . Construction Impeded . | . . . Haulers Reinforced . | . . . Stealth | -11 -10 -9 --------- Run | Scr Mat Mat Distress Signals 1 | . 1 . Communications Jammed . | . . . Distress Signals . | . . . Times Spotted 24 | . 14 10 Peak Tracking Total 8 | . 8 3 Tactical Retreats 2 | . 2 . Traps | -11 -10 -9 ------- Run | Scr Mat Mat Traps Triggered 1 | . . 1 Indirectly . | . . . Trap Hack Attempts . | . . . Triggered . | . . . Disarmed . | . . . Reprogrammed . | . . . Reused . | . . . Traps Extracted . | . . . Installed . | . . . Triggered . | . . . Machines | -11 -10 -9 ---------- Run | Scr Mat Mat Machines Disabled 3 | . 3 . Max in Single Turn 2 | . 2 . Machines Sabotaged . | . . . Garrisons Compromised . | . . . Overloaded Fab Kills . | . . . Fab Network Shutdowns . | . . . Hacking | -11 -10 -9 --------- Run | Scr Mat Mat Machines Accessed . | . . . Terminals . | . . . Fabricators . | . . . Repair Stations . | . . . Recycling Units . | . . . Scanalyzers . | . . . Garrison Access . | . . . Total Hacks . | . . . Successful . | . . . Failed . | . . . Catastrophic . | . . . Database Lockouts . | . . . Manual . | . . . Terminals . | . . . Fabricators . | . . . Repair Stations . | . . . Recycling Units . | . . . Scanalyzers . | . . . Garrison Access . | . . . Terminal Hacks . | . . . Fabricator Hacks . | . . . Repair Station Hacks . | . . . Recycling Unit Hacks . | . . . Scanalyzer . | . . . Garrison Access Hacks . | . . . Unauthorized Hacks . | . . . Terminals . | . . . Fabricators . | . . . Repair Stations . | . . . Recycling Units . | . . . Scanalyzers . | . . . Garrison Access . | . . . Data Cores Recovered . | . . . Used . | . . . Hacking Detections . | . . . Full Trace Events . | . . . Feedback Events . | . . . Feedback Blocked . | . . . Robot Schematics Acquired . | . . . Robots Built . | . . . Matter . | . . . Time . | . . . Total Robot Build Rating . | . . . Part Schematics Acquired . | . . . Parts Built . | . . . Matter . | . . . Time . | . . . Total Part Build Rating . | . . . Parts Repaired . | . . . Time . | . . . Parts Recycled . | . . . Recycled Matter . | . . . Retrieved Matter . | . . . Retrieved Components . | . . . Parts Scanalyzed . | . . . Part Schematics Acquired . | . . . Parts Damaged . | . . . Bothacking | -11 -10 -9 ------------ Run | Scr Mat Mat Used RIF Installer . | . . . Robots Hacked . | . . . Non-combat . | . . . Combat . | . . . Robot Hacks Applied . | . . . Relay Couplers Released . | . . . Robots Rewired . | . . . Allies Hacked . | . . . Hacks Repelled . | . . . Allies | -11 -10 -9 -------- Run | Scr Mat Mat Total Allies . | . . . Largest Group . | . . . Highest-Rated Group . | . . . Highest-Rated Ally . | . . . Total Orders . | . . . Ally Attacks . | . . . Total Damage . | . . . Kills . | . . . Allies Corrupted . | . . . Allies Melted . | . . . Intel | -11 -10 -9 ------- Run | Scr Mat Mat Robot Analysis Total . | . . . Derelict Logs Recovered . | . . . Drone Launches . | . . . Drone Recoveries . | . . . Exploration | -11 -10 -9 ------------- Run | Scr Mat Mat Turns Passed 639 | 62 358 219 Spaces Moved 279 | 48 144 87 Core 96 | 5 65 26 Treads 61 | . . 61 Legs 122 | 43 79 . Wheels . | . . . Hover . | . . . Flight . | . . . Fastest Speed 50 | 50 120 160 Average Speed 169 | 112 178 186 Slowest Speed 250 | 120 250 250 Overloaded Moves . | . . . Propulsion Burnouts . | . . . Robots Hopped . | . . . Cave-ins Triggered . | . . . Exploration Rate (%) 16 | 3 33 14 Regions Visited 2 Branch Regions . Pre-discovered Areas . | . . . Known Exits Taken . | . . . Unknown Exits Taken 2 | 1 1 . Scrap Searched . | . . . Spaces Dug . | . . . Terrain Destroyed 5 | . 2 3 Melee . | . . . Projectile 5 | . 2 3 AOE . | . . . Actions | -11 -10 -9 --------- Run | Scr Mat Mat Total 360 | 54 189 117 Wait 3 | . 1 2 Move 277 | 47 143 87 Hop . | . . . Pick Up 14 | 4 3 7 Fast Attach 8 | 3 4 1 Attach 6 | . 3 3 Detach . | . . . Swap 2 | . . 2 Drop 4 | . 3 1 Fire 46 | . 32 14 Melee . | . . . Ram . | . . . Kick . | . . . Crush . | . . . Escape Stasis . | . . . Rewire . | . . . Trap . | . . . Miscellaneous . | . . . Route ------- -11/Scrapyard -10/Materials -9/Materials History --------- Turn | Location | Event 16 | -11/Scrapyard | Discovered new exit (range 14) 63 | -11/Scrapyard | Entered Materials 259 | -10/Materials | Lost 5 parts (2n1u2w) 310 | -10/Materials | Build established: Mutant 408 | -10/Materials | Discovered new exit (range 3) 421 | -10/Materials | Entered another Materials area 421 | -9/Materials | Evolved 2 slots: Propulsion x1, Utility x1 640 | -9/Materials | Self-destructed Last Messages --------------- 00566_ U-05 Engineer builds a Wall. 00567_ S-10 Pest destroyed. 00570_ K-01 Serf collects debris. 00571_ U-05 Engineer lays Concrete. 00572_ U-05 Engineer builds a Door. 00574_ K-01 Serf collects debris. 00576_ U-05 Engineer lays Concrete. 00577_ K-01 Serf collects debris. 00577_ U-05 Engineer builds a Wall. 00582_ U-05 Engineer lays Concrete. 00585_ K-01 Serf collects debris. 00607_ Triggered Alarm Trap. 00607_ An alarm sounds. 00607_ ALERT: Alarm triggered, dispatching investigation squad. 00609_ Acquired Imp. Light Cannon. 00617_ Lgt. Ion Engine destroyed. 00617_ Dropped Imp. Light Cannon. 00630_ K-01 Serf cleans the Nuclear Reactor. 00634_ Door malfunctions. 00635_ U-05 Engineer lays Concrete. Map ----- +----------------------------------------------------+ | ??????????????? ?# #?""" #??????? | | ?????????????? ?# #?""" #??????? | | ?????????????##??# #??"" #??????? | | ?????????????????# #?? #??????? | | ?????????????????+ #???######??????? | | ???????????????? # #???????????????? | | ???????????????? # #???????????????? | | ??????????????? ?# #??????" ???????? | | ??????????????##?# #?????"""???????? | | ????####?????????# #????"""????????? | | ????#! / ????????# #??? ??????????? | | ????# ?###### ###+####??#?????? | | ????# # + ?? ???? | | ?????? """ + #???" ???? | | ????????????# ""#???" ???? | | ????????????# ] Y"#??"" ???? | | ?????? # ] ""#? #??? | | ????????"" / g # """ #??? | | ????????????# # """ #??? | | ????????????##+#####/## " """ #??? | | ??????????????????? # # #??? | | ??????????????????? # ##########??? | | ?????????????????? # b #????????? | | ?????????????????? + #????????? | | ????????????????? ###/####???????? | | ????????????????? # @ #???????? | | ???????????????? # "S #???????? | | ???????????????? # """ #???????? | | ??????????????? # "" #???????? | | ???????????????######## #???????? | | ??????????????????????# ] !#???????? | | ??????????????????????########???????? | | ?????????????????????????????????????? | | ?????????????????????????????????????? | | | | | | | | | | | | | | | | | | | | | | | | | | | | | | | | | +----------------------------------------------------+ Best States ------------- Heat Dissipation 28 Energy Generation 10 Energy Capacity 250 Matter Stores 300 Matter Capacity 300 Sight Range 18 Terrain Scan Density 10 Armor Coverage 150 Evasion (%) 40 Recoil Reduction 1 Item Schematics ----------------- None Robot Schematics ------------------ None Fabricated ------------ Nothing Alien Tech Used ----------------- None Achievements -------------- None Challenges ------------ None Game ------ Seed FissionScanStorm Manual? 0 Play Time 00:05:52 Cumulative 106.9 hours Start 2019.11.04 @ 21:37:34 End 2019.11.04 @ 21:42:00 Sessions 1 Manual Loads 0 Difficulty Rogue Special Mode None Game No. 181 Rogue 181 Adventurer 0 Explorer 0 Win Type - Total 0 Types 0/0/0/0/0/0/0 Lore% 33 Gallery% 48 Achievement% 34 Wizard Run 0 Options --------- ASCII 0 Keyboard 0 Movement Mouse Keybinds 0 Fullscreen 1 Font 18/SmallcapsGlow Map View 76x50 Tactical HUD 1 Map Filters NONE Filters NONE Steam 1 RUN: a24ec20c-e087-42f0-beb4-fd2f1e001d6c